bitfinex/quotes_SOLUSD_20240808
["timestamp","ask_amount","ask_price","bid_price","bid_amount"]
[1723110516666,43.7799,155.64,155.55,20.0]
[1723110517062,43.7799,155.64,155.56,45.34]
[1723110517269,27.88,155.64,155.57,20.0]
[1723110517482,27.88,155.66,155.58,45.34]
[1723110517866,34.3043,155.66,155.58,45.34]
[1723110518184,27.88,155.66,155.58,45.34]
[1723110518963,44.4897,155.68,155.59,6.3623]
[1723110519175,27.88,155.7,155.6,65.34]
[1723110520264,27.88,155.7,155.61,16.5531]
[1723110520472,383.2,155.73,155.62,65.34]
[1723110520473,6.4214,155.73,155.62,65.34]
[1723110520677,27.88,155.73,155.62,65.34]
[1723110520967,295.0006,155.75,155.63,27.88]
[1723110521270,288.58,155.75,155.64,65.34]
[1723110521783,6.4217,155.72,155.64,65.34]
[1723110522172,6.4213,155.73,155.64,65.34]
[1723110524374,8.02768567,155.72,155.64,65.34]
[1723110525271,1.60588567,155.72,155.64,65.34]
[1723110525471,27.88,155.73,155.64,65.34]
[1723110526487,27.88,155.71,155.64,65.17]
[1723110527287,29.4860078,155.71,155.64,65.17]
[1723110527586,260.7,155.75,155.61,16.5531]
[1723110527587,27.88,155.69,155.61,16.5531]
[1723110528176,34.303,155.69,155.61,16.5531]
[1723110528501,27.88,155.67,155.59,6.3623]
[1723110528669,27.88,155.67,155.57,16.3253]
[1723110528670,27.88,155.65,155.57,16.3253]
[1723110528893,27.88,155.65,155.58,1.28540016]
[1723110529105,27.88,155.65,155.57,16.3253]
[1723110530284,27.88,155.65,155.58,20.0]
[1723110531078,27.88,155.65,155.59,45.34]
[1723110532378,27.88,155.65,155.59,45.17]
[1723110532690,27.88,155.65,155.58,20.0]
[1723110532898,27.88,155.68,155.59,45.17]
[1723110533098,20.0,155.67,155.59,45.34]
[1723110534890,26.4238,155.67,155.59,45.34]
[1723110535396,20.0,155.67,155.59,45.34]
[1723110536391,27.88,155.69,155.59,45.34]
[1723110536585,27.88,155.69,155.6,21.28313391]
[1723110536788,27.88,155.69,155.61,45.34]
[1723110536991,27.88,155.69,155.62,1.282969]
[1723110537473,27.88,155.69,155.61,51.962]
[1723110537684,34.3022,155.71,155.62,20.0]
[1723110537890,34.3022,155.71,155.63,45.34]
[1723110538073,6.4226,155.7,155.63,45.34]
[1723110538267,6.4226,155.7,155.64,45.0]
[1723110538479,6.4226,155.7,155.63,0.34]
[1723110538788,6.1331,155.73,155.64,15.5342]
[1723110538789,27.88,155.73,155.64,15.5342]
[1723110539013,16.2272,155.74,155.65,65.34]
[1723110539288,16.2272,155.74,155.65,66.62289029]
[1723110539979,671.78,155.75,155.65,66.62289029]
[1723110540711,671.78,155.75,155.66,6.3063]
[1723110540867,671.78,155.75,155.67,45.17]
[1723110541068,6.421,155.74,155.67,45.34]
[1723110541269,29.48566291,155.73,155.66,6.3063]
[1723110541598,29.48566291,155.73,155.64,15.5342]
[1723110541599,34.3033,155.69,155.64,15.5342]
[1723110541779,27.88,155.69,155.62,6.6332]
[1723110542384,6.4239,155.67,155.6,15.0794]
[1723110542593,27.88,155.67,155.6,15.0794]
[1723110543089,34.3038,155.67,155.6,15.0794]
[1723110543480,34.3038,155.67,155.61,20.0]
[1723110543987,27.88,155.67,155.61,20.0]
[1723110544886,34.3038,155.67,155.61,20.0]
[1723110545195,27.88,155.67,155.61,20.0]
[1723110545585,27.88,155.67,155.62,45.34]
[1723110545993,27.88,155.67,155.61,20.17]
[1723110546197,27.88,155.67,155.62,45.34]
[1723110546388,27.88,155.67,155.61,20.0]
[1723110546776,34.3039,155.67,155.61,20.0]
[1723110546986,27.88,155.67,155.58,6.1507]
[1723110547379,6.4245,155.66,155.58,6.1507]
[1723110547686,27.88,155.65,155.58,6.1507]
[1723110548399,27.88,155.65,155.59,0.17]
[1723110548577,27.88,155.65,155.59,45.17]
[1723110550375,50.073,155.65,155.56,15.0166]
[1723110550572,50.073,155.65,155.57,20.0]
[1723110551695,6.4252,155.64,155.56,15.0166]
[1723110551890,27.88,155.63,155.57,45.0]
[1723110552616,34.3063,155.61,155.52,15.1499]
[1723110552777,34.3063,155.61,155.53,20.0]
[1723110552976,34.3063,155.61,155.52,15.1499]
[1723110553792,34.3063,155.61,155.53,45.0]
[1723110554007,34.3063,155.61,155.53,45.17]
[1723110554491,27.88,155.61,155.53,45.17]
[1723110554683,27.88,155.61,155.54,20.0]
[1723110555293,27.88,155.61,155.55,45.34]
[1723110555876,27.88,155.61,155.55,45.17]
[1723110556284,34.3063,155.61,155.54,20.0]
[1723110556489,27.88,155.59,155.5,6.1148]
[1723110556700,1.60734974,155.58,155.5,6.1148]
[1723110557093,34.3072,155.59,155.5,6.1148]
[1723110557399,16.0635,155.64,155.41,104.79307751]
[1723110557400,27.88,155.53,155.41,104.79307751]
[1723110557597,27.88,155.53,155.42,27.88]
[1723110558202,27.88,155.53,155.41,114.87427632]
[1723110558381,42.4828,155.58,155.41,104.79307751]
[1723110558382,27.88,155.49,155.41,104.79307751]
[1723110558586,15.0111,155.5,155.29,20.8466586]
[1723110558587,27.88,155.47,155.36,15.4556]
[1723110558779,34.313,155.45,155.36,15.4556]
[1723110559088,27.88,155.45,155.36,15.4556]
[1723110559308,27.88,155.45,155.32,10.08581954]
[1723110559309,27.88,155.41,155.32,10.08581954]
[1723110559586,27.88,155.41,155.29,0.8466586]
[1723110559780,1.60917052,155.4,155.29,0.8466586]
[1723110559989,27.88,155.41,155.29,0.8466586]
[1723110560194,34.3146,155.41,155.29,0.8466586]
[1723110560773,34.3146,155.41,155.29,20.8466586]
[1723110560979,34.3146,155.41,155.29,0.8466586]
[1723110561335,27.88,155.31,155.29,0.8466586]
[1723110561688,6.4379,155.33,155.29,0.8466586]
[1723110561892,28.04861305,155.32,155.29,0.8466586]
[1723110562090,26.4384,155.32,155.29,0.8466586]
[1723110562291,21.61033338,155.32,155.29,0.8466586]
[1723110562734,42.3291,155.3,155.29,0.8466586]
[1723110562955,57.84075171,155.3,155.16,12.0]
[1723110563214,65.17,155.29,155.16,12.0]
[1723110564636,20.0,155.29,155.16,12.0]
[1723110565114,6.72686207,155.3,155.16,12.0]
[1723110565293,37.50027782,155.33,155.17,20.0]
[1723110565503,20.0,155.32,155.18,0.17]
[1723110565702,20.0,155.32,155.18,45.34]
[1723110566101,20.0,155.32,155.19,20.0]
[1723110566411,37.50029319,155.33,155.2,45.34]
[1723110566412,6.4381,155.33,155.2,45.34]
[1723110566616,6.4381,155.33,155.21,20.0]
[1723110566906,6.4381,155.33,155.22,45.34]
[1723110567697,6.723134,155.35,155.22,45.34]
[1723110567894,1.61014455,155.37,155.22,45.34]
[1723110567895,6.4366,155.37,155.22,45.34]
[1723110568133,6.4366,155.37,155.23,20.0]
[1723110568423,6.4371,155.35,155.24,45.34]
[1723110568607,8.04684514,155.35,155.24,45.34]
[1723110569212,20.0,155.34,155.24,45.34]
[1723110571116,20.0,155.35,155.24,45.34]
[1723110571414,20.0,155.37,155.24,45.34]
[1723110572107,6.4375,155.34,155.24,45.34]
[1723110572794,6.437,155.35,155.18,35.89]
[1723110572999,20.0,155.34,155.19,20.0]
[1723110573695,6.438,155.33,155.19,20.0]
[1723110573898,26.4375,155.34,155.19,20.0]
[1723110574105,20.0,155.34,155.2,45.34]
[1723110574309,20.0,155.35,155.22,21.3293]
[1723110574615,6.4371,155.35,155.23,65.34]
[1723110574914,26.4375,155.34,155.23,65.34]
[1723110575107,6.4375,155.34,155.23,65.34]
[1723110575303,6.4371,155.35,155.23,65.34]
[1723110575612,20.0,155.34,155.23,65.34]
[1723110575913,20.0,155.36,155.23,65.34]
[1723110576117,26.4367,155.36,155.23,65.34]
[1723110576409,6.4371,155.35,155.23,65.34]
[1723110576707,42.60722379,155.39,155.23,65.34]
[1723110576902,6.4363,155.37,155.23,65.34]
[1723110578616,6.437,155.35,155.23,65.34]
[1723110580617,6.4367,155.36,155.23,65.34]
[1723110580816,1.60973904,155.35,155.23,65.34]
[1723110581120,20.0,155.38,155.23,65.34]
[1723110581319,6.4364,155.37,155.23,65.34]
[1723110581507,20.0,155.36,155.23,65.34]
[1723110581714,26.4359,155.38,155.23,65.34]
[1723110581913,6.4363,155.37,155.23,65.34]
[1723110582224,20.0,155.36,155.23,65.34]
[1723110582920,6.4371,155.35,155.23,65.34]
[1723110583301,1.60971154,155.34,155.23,65.34]
[1723110583508,20.0,155.36,155.23,65.34]
[1723110583509,26.4367,155.36,155.23,65.34]
[1723110583715,6.4371,155.35,155.23,65.34]
[1723110584825,26.4366,155.36,155.23,65.34]
[1723110585208,6.4371,155.35,155.23,65.34]
[1723110585410,26.4367,155.36,155.23,65.34]
[1723110586822,20.0,155.36,155.23,65.34]
[1723110587613,20.0,155.38,155.23,65.34]
[1723110587926,27.9,155.36,155.24,27.9]
[1723110588120,27.9,155.36,155.25,65.34]
[1723110590935,34.3368,155.36,155.25,65.34]
[1723110591315,27.9,155.36,155.25,65.34]
[1723110591520,34.3369,155.36,155.25,65.34]
[1723110591942,27.9,155.36,155.25,65.34]
[1723110592732,27.9,155.36,155.25,66.62759319]
[1723110592930,47.9,155.38,155.26,27.9]
[1723110593233,47.9,155.38,155.27,45.34]
[1723110594015,6.4362,155.37,155.27,45.34]
[1723110594817,34.3367,155.36,155.27,45.34]
[1723110595126,34.3367,155.36,155.27,0.34]
[1723110595341,8.04683705,155.35,155.27,0.34]
[1723110595845,34.3375,155.34,155.25,20.0]
[1723110596029,1.60978456,155.33,155.23,20.0]
[1723110596221,27.9,155.34,155.23,21.19427963]
[1723110596632,27.9,155.34,155.23,20.0]
[1723110597164,27.9,155.32,155.22,21.3293]
[1723110597318,27.9,155.3,155.22,21.3293]
[1723110597634,34.3392,155.3,155.22,21.3293]
[1723110598018,1.61022291,155.29,155.22,21.3293]
[1723110598233,34.3392,155.3,155.22,21.3293]
[1723110598939,27.9,155.3,155.22,21.3293]
[1723110599327,34.3393,155.3,155.22,21.3293]
[1723110599532,1.61015271,155.29,155.22,21.3293]
[1723110599734,34.3392,155.3,155.23,45.0]
[1723110599936,34.3392,155.3,155.22,6.1634]
[1723110600339,6.4396,155.29,155.22,6.1634]
[1723110600595,27.9,155.26,155.18,22.0502]
[1723110601222,6.4396,155.29,155.18,22.0502]
[1723110601223,27.9,155.28,155.18,22.0502]
[1723110601951,27.9,155.3,155.19,0.17]
[1723110602153,27.9,155.32,155.2,27.9]
[1723110602328,20.0,155.31,155.21,45.34]
[1723110602522,27.9,155.32,155.21,45.34]
[1723110602749,27.9,155.34,155.22,27.9]
[1723110603024,34.337,155.36,155.24,6.0287]
[1723110603226,34.337,155.36,155.25,45.34]
[1723110603438,27.9,155.36,155.25,45.34]
[1723110603638,6.4378,155.34,155.25,45.34]
[1723110604066,20.0,155.33,155.25,45.34]
[1723110604235,26.4376,155.34,155.25,45.34]
[1723110604439,26.4375,155.34,155.25,45.34]
[1723110605532,8.04751814,155.33,155.25,45.34]
[1723110605732,20.0,155.34,155.25,45.34]
[1723110605944,6.4369,155.36,155.26,15.3348]
[1723110606132,6.4363,155.37,155.27,45.34]
[1723110606975,6.4359,155.38,155.27,45.34]
[1723110607727,8.04584727,155.37,155.27,45.34]
[1723110608544,1.60934727,155.37,155.27,45.34]
[1723110608849,20.0,155.38,155.27,45.34]
[1723110609053,6.4375,155.34,155.27,0.17]
[1723110609256,6.4371,155.35,155.27,0.17]
[1723110609544,6.4371,155.35,155.26,15.3348]
[1723110610452,6.4365,155.37,155.26,15.3348]
[1723110610814,20.0,155.36,155.27,45.0]
[1723110610950,20.0,155.36,155.28,0.17]
[1723110610951,1.6094391,155.35,155.28,0.17]
[1723110611136,20.0,155.36,155.28,0.17]
[1723110611343,6.4369,155.36,155.28,0.17]
[1723110611533,20.0,155.35,155.28,0.17]
[1723110612050,22.2711,155.39,155.28,0.17]
[1723110612230,26.4358,155.38,155.28,0.17]
[1723110612738,8.04563048,155.37,155.28,0.17]
[1723110612936,6.4367,155.36,155.28,0.17]
[1723110613139,1.6095692,155.37,155.26,15.3348]
[1723110613342,26.4371,155.35,155.26,15.3348]
[1723110613537,6.4367,155.36,155.26,15.3348]
[1723110613837,20.0,155.35,155.26,15.3348]
[1723110614035,26.4371,155.35,155.26,15.3348]
[1723110614449,6.4374,155.34,155.27,45.34]
[1723110614668,6.4375,155.34,155.26,15.3348]
[1723110614952,8.04729757,155.34,155.26,15.3348]
[1723110615258,20.0,155.35,155.26,15.3348]
[1723110615835,20.0,155.35,155.27,45.17]
[1723110616031,20.0,155.35,155.28,0.17]
[1723110616243,26.4371,155.35,155.28,0.17]
[1723110616447,6.4383,155.32,155.28,0.17]
[1723110616655,6.4388,155.31,155.26,15.3348]
[1723110616954,6.4394,155.3,155.24,6.0287]
[1723110617252,1.61020479,155.29,155.24,6.0287]
[1723110617657,6.4394,155.3,155.24,6.0287]
[1723110617840,6.4383,155.32,155.24,6.0287]
[1723110618160,20.0,155.31,155.24,6.0287]
[1723110618468,6.4375,155.34,155.25,45.34]
[1723110618756,20.0,155.33,155.25,45.34]
[1723110618929,28.04738025,155.34,155.25,45.34]
[1723110619542,26.4376,155.34,155.25,45.34]
[1723110619731,21.60988686,155.34,155.25,45.34]
[1723110620553,1.60988686,155.34,155.25,45.34]
[1723110620763,21.60986637,155.37,155.25,45.34]
[1723110620976,6.4382,155.33,155.25,45.34]
[1723110621153,6.4392,155.3,155.25,45.34]
[1723110621329,1.61020061,155.29,155.25,45.17]
[1723110621547,8.04980061,155.29,155.24,6.0287]
[1723110621970,1.61032442,155.34,155.24,6.0287]
[1723110622168,6.4388,155.31,155.24,6.0287]
[1723110622340,20.0,155.34,155.24,6.0287]
[1723110622535,6.4382,155.33,155.25,45.17]
[1723110622769,20.0,155.32,155.25,45.17]
[1723110622939,26.4383,155.32,155.26,0.17]
[1723110624039,383.2,155.35,155.26,0.17]
[1723110624371,8.04753094,155.34,155.26,0.17]
[1723110624872,383.2,155.35,155.26,0.17]
[1723110625074,6.72699358,155.38,155.26,0.17]
[1723110625238,6.4358,155.38,155.27,16.6597]
[1723110625438,6.4358,155.38,155.28,45.34]
[1723110625876,27.9,155.37,155.28,45.34]
[1723110626453,10.03280645,155.42,155.34,27.9]
[1723110626700,383.2,155.47,155.35,6.7239]
[1723110627132,260.7,155.5,155.35,6.7239]
[1723110627133,3.32319677,155.5,155.41,27.9]
[1723110627182,27.9,155.52,155.42,0.34]
[1723110627671,27.9,155.52,155.42,45.34]
[1723110628013,6.4302,155.52,155.42,45.34]
[1723110628207,1.60798268,155.51,155.42,45.34]
[1723110629093,383.2,155.54,155.43,6.5911]
[1723110629390,383.2,155.54,155.44,45.17]
[1723110629697,383.2,155.54,155.44,45.34]
[1723110630590,20.0,155.53,155.44,45.34]
[1723110630891,16.0403,155.57,155.44,45.34]
[1723110631095,17.64807491,155.57,155.44,45.34]
[1723110631382,17.64807067,155.57,155.44,45.34]
[1723110631620,24.07607067,155.57,155.44,45.34]
[1723110631754,17.64807067,155.57,155.44,45.34]
[1723110631971,1.60772982,155.58,155.44,45.34]
[1723110632154,20.0,155.58,155.44,45.34]
[1723110632371,6.4268,155.6,155.44,45.34]
[1723110632577,6.4268,155.6,155.45,20.0]
[1723110632840,6.4276,155.58,155.46,45.34]
[1723110632956,1.60772068,155.57,155.46,45.34]
[1723110633466,8.03529992,155.58,155.46,45.34]
[1723110633785,20.0,155.57,155.46,45.34]
[1723110634670,21.60770093,155.57,155.46,45.34]
[1723110634856,1.60770093,155.57,155.46,45.34]
[1723110635066,6.4292,155.54,155.43,6.5911]
[1723110635354,35.81,155.57,155.43,6.5911]
[1723110635560,21.60795128,155.56,155.43,6.5911]
[1723110635775,28.03665128,155.56,155.43,6.5911]
[1723110635977,6.4288,155.55,155.43,6.5911]
[1723110636180,28.03714887,155.54,155.43,6.5911]
[1723110636387,1.60794887,155.54,155.43,6.5911]
[1723110636646,15.812,155.62,155.48,35.81]
[1723110636915,383.2,155.64,155.47,15.8955]
[1723110637040,15.9949,155.66,155.48,6.5018]
[1723110637397,643.9,155.67,155.5,6.5018]
[1723110637674,0.8466586,155.68,155.51,65.34]
[1723110637984,0.8466586,155.68,155.52,22.3973]
[1723110637985,1.60660394,155.67,155.52,22.3973]
[1723110638239,9.08032636,155.67,155.53,45.34]
[1723110638424,9.08032636,155.67,155.54,20.0]
[1723110638688,1.60664541,155.67,155.55,45.17]
[1723110638905,0.8466586,155.68,155.56,0.17]
[1723110639118,0.8466586,155.68,155.57,6.6025]
[1723110639299,0.8466586,155.68,155.59,16.4449]
[1723110639489,35.81,155.8,155.61,6.6025]
[1723110639688,1.60554128,155.83,155.62,57.32888211]
[1723110639915,6.4173,155.83,155.64,6.0653]
[1723110640082,8.02246999,155.83,155.65,21.51865489]
[1723110640294,1.60516657,155.82,155.66,45.0]
[1723110640600,0.84551801,155.83,155.69,6.3633]
[1723110640791,35.81,155.8,155.61,14.8116]
[1723110641025,35.81,155.77,155.64,0.34]
[1723110641213,0.92756912,155.76,155.64,45.34]
[1723110641395,6.4211,155.74,155.64,0.17]
[1723110641586,7.34866912,155.74,155.64,0.17]
[1723110641793,0.92756912,155.73,155.64,0.17]
[1723110641994,72.34896912,155.73,155.63,6.3633]
[1723110642189,0.92756912,155.73,155.64,0.17]
[1723110642393,51.4211,155.74,155.64,0.17]
[1723110642606,22.7289,155.81,155.64,0.17]
[1723110642917,0.92756912,155.8,155.64,20.17]
[1723110643119,0.92756912,155.8,155.65,45.0]
[1723110643293,6.4189,155.79,155.66,20.34]
[1723110643492,0.92756912,155.8,155.67,45.0]
[1723110643674,27.34606912,155.8,155.68,0.34]
[1723110644077,0.92756912,155.79,155.68,0.34]
[1723110644814,20.0,155.8,155.68,0.34]
[1723110645066,0.8466586,155.84,155.69,1.19335005]
[1723110645210,0.92756912,155.83,155.7,0.17]
[1723110645406,1.77422772,155.84,155.7,20.34]
[1723110645588,1.77422772,155.84,155.71,45.0]
[1723110645922,0.8466586,155.84,155.72,20.34]
[1723110646118,0.8466586,155.84,155.74,6.0454]
[1723110646308,0.8466586,155.84,155.75,20.17]
[1723110646555,0.8466586,155.84,155.76,45.17]
[1723110646777,0.8466586,155.84,155.77,0.17]
[1723110647137,0.8466586,155.84,155.77,20.17]
[1723110647330,16.1593,155.95,155.78,45.17]
[1723110647785,16.1593,155.95,155.79,21.28185195]
[1723110647800,0.92756912,155.94,155.8,45.17]
[1723110648050,6.4148,155.89,155.8,45.34]
[1723110648367,0.92756912,155.94,155.8,45.34]
[1723110649135,6.4144,155.9,155.8,45.34]
[1723110649294,0.92756912,155.89,155.8,45.34]
[1723110649493,6.4144,155.9,155.8,45.34]
[1723110649642,6.4139,155.92,155.8,45.34]
[1723110649821,65.0,155.91,155.8,45.34]
[1723110650064,71.4139,155.91,155.8,45.34]
[1723110650280,20.0,155.91,155.8,45.34]
[1723110650478,16.1593,155.95,155.8,45.34]
[1723110650609,426.78,155.97,155.81,20.0]
[1723110650610,389.6114,155.97,155.81,20.0]
[1723110651018,389.6115,155.97,155.82,45.34]
[1723110651135,383.2,155.97,155.82,45.34]
[1723110651313,6.4112,155.98,155.83,20.0]
[1723110651618,140.8466586,156.0,155.84,45.34]
[1723110651830,140.8466586,156.0,155.86,6.5028]
[1723110652057,147.2568586,156.0,155.87,65.34]
[1723110652363,140.8466586,156.0,155.87,79.3114]
[1723110652704,147.2569586,156.0,155.87,79.3114]
[1723110652904,147.2569586,156.0,155.87,45.34]
[1723110652905,0.92756912,155.99,155.87,45.34]
[1723110653136,6.4116,155.97,155.87,45.34]
[1723110653422,0.92756912,155.99,155.87,45.34]
[1723110653623,26.4107,155.99,155.87,45.34]
[1723110653819,20.0,155.99,155.87,45.34]
[1723110654032,140.8466586,156.0,155.87,45.34]
[1723110654228,140.8466586,156.0,155.88,20.0]
[1723110654425,140.8466586,156.0,155.89,45.34]
[1723110654807,147.2569586,156.0,155.89,45.34]
[1723110655012,6.4107,155.99,155.89,45.34]
[1723110655214,140.8466586,156.0,155.89,45.34]
[1723110655810,147.2569586,156.0,155.89,45.34]
[1723110656343,20.0,155.99,155.89,45.34]
[1723110656523,140.8466586,156.0,155.89,45.34]
[1723110657325,140.8466586,156.0,155.9,20.0]
[1723110657545,140.8466586,156.0,155.91,45.34]
[1723110659312,0.92756912,155.99,155.91,45.34]
[1723110659630,0.92756912,155.99,155.86,6.5028]
[1723110659809,45.92756912,155.99,155.86,6.5028]
[1723110660006,6.412,155.96,155.86,6.5028]
[1723110660246,20.92756912,155.95,155.86,6.5028]
[1723110660438,45.92756912,155.95,155.86,6.5028]
[1723110660641,20.0,155.97,155.86,6.5028]
[1723110660817,7.33946912,155.96,155.86,6.5028]
[1723110661021,0.92756912,155.95,155.86,6.5028]
[1723110661233,7.33996912,155.95,155.86,6.5028]
[1723110661439,7.33986912,155.95,155.86,6.5028]
[1723110661637,0.92756912,155.95,155.86,6.5028]
[1723110661961,43.58,155.9,155.78,6.2137]
[1723110662129,384.12756912,155.89,155.78,6.2137]
[1723110662451,6.416,155.86,155.78,6.2137]
[1723110662650,7.34356912,155.86,155.78,6.2137]
[1723110662937,0.92756912,155.86,155.78,6.2137]
[1723110663161,389.6151,155.89,155.78,6.2137]
[1723110663583,26.4153,155.88,155.78,6.2137]
[1723110663880,428.54,155.87,155.72,6.5686]
[1723110664029,6.4173,155.83,155.72,6.5686]
[1723110664397,65.92756912,155.82,155.72,6.5686]
[1723110664630,6.4181,155.81,155.72,6.5686]
[1723110664757,65.92756912,155.82,155.72,6.5686]
[1723110664758,6.4188,155.79,155.72,6.5686]
[1723110664940,0.92756912,155.78,155.66,20.54]
[1723110665408,20.0,155.82,155.66,20.54]
[1723110665418,383.2,155.85,155.67,1.4683075]
[1723110665634,0.92756912,155.84,155.67,1.4683075]
[1723110665729,383.2,155.85,155.67,1.4683075]
[1723110665975,42.41109682,156.03,155.67,1.4683075]
[1723110665976,383.2,155.89,155.68,43.58]
[1723110666246,383.2,155.89,155.71,6.3674]
[1723110666559,383.2,155.89,155.72,23.09122181]
[1723110666838,389.6139,155.92,155.73,45.0]
[1723110667031,6.4139,155.92,155.74,21.62341815]
[1723110667253,383.2,155.95,155.75,45.0]
[1723110667559,383.2,155.95,155.76,20.80208738]
[1723110667560,0.92756912,155.94,155.76,20.80208738]
[1723110667730,6.4135,155.92,155.77,45.0]
[1723110667932,0.92756912,155.94,155.78,20.34]
[1723110668141,0.92756912,155.94,155.8,6.4358]
[1723110668331,0.92756912,155.94,155.81,65.34]
[1723110668532,0.92756912,155.95,155.81,45.34]
[1723110668753,0.92756912,155.95,155.8,6.4358]
[1723110668929,0.92756912,155.95,155.81,0.17]
[1723110669126,7.34036912,155.94,155.81,0.17]
[1723110669342,6.4139,155.92,155.81,0.17]
[1723110669536,0.92756912,155.91,155.81,0.17]
[1723110669743,45.92756912,155.91,155.8,6.4358]
[1723110670238,0.92756912,155.94,155.81,0.17]
[1723110670432,0.92756912,155.93,155.81,0.17]
[1723110670743,6.4139,155.91,155.81,0.17]
[1723110670951,0.92756912,155.9,155.81,0.17]
[1723110671126,7.34146912,155.91,155.81,0.17]
[1723110671524,45.0,155.94,155.81,0.17]
[1723110671738,45.0,155.93,155.81,0.34]
[1723110671948,0.92756912,155.94,155.81,0.34]
[1723110672338,6.4134,155.93,155.81,45.34]
[1723110672536,260.7,155.96,155.81,45.34]
[1723110672749,6.4131,155.93,155.81,45.34]
[1723110673138,0.92756912,155.92,155.81,45.34]
[1723110673350,260.7,155.96,155.81,45.34]
[1723110673351,20.0,155.93,155.81,45.34]
[1723110673554,6.4139,155.91,155.81,45.34]
[1723110673738,6.4139,155.91,155.8,6.4358]
[1723110673739,45.0,155.9,155.8,6.4358]
[1723110673947,26.4135,155.93,155.8,6.4358]
[1723110674150,52.34106912,155.92,155.8,6.4358]
[1723110674734,20.0,155.93,155.8,6.4358]
[1723110674948,27.33986912,155.95,155.8,6.4358]
[1723110675149,20.92756912,155.95,155.8,6.4358]
[1723110675366,27.33996912,155.95,155.81,45.34]
[1723110675547,27.33996912,155.95,155.81,45.0]
[1723110675548,20.92756912,155.95,155.81,45.0]
[1723110675752,6.4143,155.91,155.8,6.4358]
[1723110675968,6.414,155.91,155.8,6.4358]
[1723110676152,0.92756912,155.93,155.8,6.4358]
[1723110676760,384.12756912,155.92,155.8,6.4358]
[1723110676951,6.4155,155.88,155.8,6.4358]
[1723110677132,0.92756912,155.87,155.8,6.4358]
[1723110677756,7.34316912,155.87,155.8,6.4358]
[1723110678057,384.12756912,155.87,155.72,6.3963]
[1723110678236,428.2,155.88,155.73,21.28358589]
[1723110678561,428.2,155.88,155.73,1.28358589]
[1723110678871,428.2,155.88,155.72,6.3963]
[1723110678872,6.4165,155.85,155.72,6.3963]
[1723110679152,20.34,155.87,155.72,6.3963]
[1723110679362,0.92756912,155.84,155.72,6.3963]
[1723110679861,428.2,155.86,155.72,6.3963]
[1723110679862,7.34486912,155.83,155.72,6.3963]
[1723110680059,0.92756912,155.83,155.72,6.3963]
[1723110680253,45.92756912,155.84,155.72,6.3963]
[1723110680450,52.34436912,155.84,155.72,6.3963]
[1723110680805,45.92756912,155.83,155.72,6.3963]
[1723110680969,6.4184,155.81,155.72,6.3963]
[1723110681266,45.92756912,155.8,155.72,6.3963]
[1723110681607,384.12756912,155.79,155.67,6.5379]